Cogmind - Beta 10.2 @@@ ROGUE MODE // 2021.04.03 @ 00:25:09 Player: Nalzok Result: Destroyed by Combat Programmer with EMDS Performance ------------- Evolutions (9) 4500 Regions Visited (19) 3800 Robots Destroyed (51) 255 Value Destroyed (1928) 1928 Prototype IDs (49) 980 Alien Tech Used (2) 400 Bonus (10200) 10200 TOTAL SCORE: 22063 Bonus ------- Pacifist 200 Met Warlord at Base 500 MAIN.C Attacked Warlord 500 Met Warlord at Research 2000 Met Sigix 2000 Met MAIN.C 5000 Cogmind --------- Core Integrity 0/1600 Matter 283/300 Energy 74/100 System Corruption 26% Temperature Cool (0) Movement Core (50) Location -1/Command Parts ------- > --- POWER (4) -------- (None) > --- PROPULSION (6) --- (None) > --- UTILITY (13) ----- (None) > --- WEAPON (2) ------- (None) > --- INVENTORY (4) ---- Triangulator Sigix Containment Pod Sigix Corpse Peak State ------------ > --- POWER ------------ Micro Fission Core Micro Fission Core Light Quantum Reactor Light Quantum Reactor > --- PROPULSION ------- Nuclear Pulse Array Impulse Thruster Field Propulsion Array Electron Diverter > --- UTILITY ---------- Coolant Network Medium Storage Unit Advanced Weight Redist. System Triangulator Advanced Sensor Array Experimental Signal Interpreter Experimental Melee Analysis Suite Nanoactuators Advanced Transmission Jammer Advanced Reaction Control System Phase Shifter Advanced Cloaking Device > --- WEAPON ----------- Core Stripper > --- INVENTORY -------- Impulse Thruster Impulse Thruster Diametric Drive Improved Stasis Canceller Sigix Containment Pod Sigix Corpse Sigix Corpse [Rating: 188] Favorites ----------- Power Micro Fission Core Engine Deuterium Engine Power Core Micro Fission Core Reactor Light Particle Reactor Propulsion Improved VTOL Module Treads Advanced Treads Leg Aluminum Leg Hover Unit Cooled Linear Gravjet Flight Unit Improved VTOL Module Utility Advanced Sensor Array Device Advanced Sensor Array Storage Medium Storage Unit Processor Advanced Signal Interpreter Hackware Hacking Suite Protection Light Armor Plating Artifact Phase Redirector Weapon Chainsword Energy Gun Vortex Shotgun Energy Cannon EM Pulse Cannon Ballistic Gun Light Assault Rifle Ballistic Cannon Compact Linear Accelerator Launcher Micro-nuke Launcher Special Weapon Improved Remote Datajack Impact Weapon Core Stripper Slashing Weapon Chainsword Piercing Weapon Force Lance Build | -11 -10 -9 -8 -8 -7 -6 -5 -5 -5 -5 -4 -4 -4 -4 -3 -2 -2 -1 -1 ------- Run | Scr Mat Mat Mat Sto Fac Fac Fac Upp Upp War Pro Fac Arm Lab Res Res Qua Acc Com Slots Evolved 18 | . . 2 2 . 2 2 2 . . . . 2 . . 2 2 . 2 . Power 3 | . . . . . 1 . . . . . . 1 . . . . . 1 . Propulsion 4 | . . . 2 . 1 1 . . . . . . . . . . . . . Utility 11 | . . 2 . . . 1 2 . . . . 1 . . 2 2 . 1 . Weapon . | . . . . . . . . . . . . . . . . . . . . Parts Attached 198 | . 1 12 13 18 4 13 10 2 . 3 . 15 7 2 22 45 12 12 7 Power 25 | . . 2 . 1 1 4 3 . . . . 3 . . 1 5 1 2 2 Engine 6 | . . 2 . 1 1 1 1 . . . . . . . . . . . . Core 10 | . . . . . . 3 2 . . . . 2 . . . 2 . . 1 Reactor 9 | . . . . . . . . . . . . 1 . . 1 3 1 2 1 Propulsion 50 | . . 6 7 9 2 2 1 . . . . 3 3 . 2 6 1 3 5 Treads 7 | . . . 1 4 . . . . . . . . . . . 2 . . . Leg 14 | . . 6 6 1 . . . . . . . . . . . . . 1 . Wheel . | . . . . . . . . . . . . . . . . . . . . Hover 1 | . . . . . . . . . . . . . . . . 1 . . . Flight 28 | . . . . 4 2 2 1 . . . . 3 3 . 2 3 1 2 5 Utility 87 | . 1 3 4 3 1 6 5 . . 1 . 7 2 . 17 23 8 6 . Device 65 | . . 3 1 . 1 5 3 . . . . 5 2 . 14 20 7 4 . Storage 5 | . . . . 1 . . . . . . . 1 . . . 2 . 1 . Processor 9 | . . . 2 1 . . 1 . . 1 . . . . 2 1 . 1 . Hackware 2 | . . . . 1 . 1 . . . . . . . . . . . . . Protection 5 | . 1 . 1 . . . 1 . . . . 1 . . 1 . . . . Artifact 1 | . . . . . . . . . . . . . . . . . 1 . . Weapon 36 | . . 1 2 5 . 1 1 2 . 2 . 2 2 2 2 11 2 1 . Energy Gun 12 | . . . . 2 . 1 1 1 . 2 . 1 1 . . 3 . . . Energy Cannon 2 | . . . 1 . . . . . . . . . . . . 1 . . . Ballistic Gun 4 | . . 1 1 1 . . . 1 . . . . . . . . . . . Ballistic Cannon 1 | . . . . . . . . . . . . . . . . 1 . . . Launcher 5 | . . . . . . . . . . . . . 1 2 . 2 . . . Special Weapon 1 | . . . . . . . . . . . . 1 . . . . . . . Impact Weapon 2 | . . . . . . . . . . . . . . . . . 2 . . Slashing Weapon 5 | . . . . 2 . . . . . . . . . . 1 2 . . . Piercing Weapon 4 | . . . . . . . . . . . . . . . 1 2 . 1 . Special Melee Weapon . | . . . . . . . . . . . . . . . . . . . . Unidentified Prototypes 39 | . . 1 . 3 1 2 2 . . 2 . 1 1 . 4 13 5 3 1 Parts Lost 30 | . . 1 . . . . 2 . . . . 2 2 . . 2 . . 21 Power 3 | . . . . . . . . . . . . . 1 . . . . . 2 Propulsion 10 | . . . . . . . 1 . . . . 1 1 . . . . . 7 Utility 15 | . . 1 . . . . . . . . . 1 . . . 2 . . 11 Weapon 2 | . . . . . . . 1 . . . . . . . . . . . 1 Highest Loss Streak 21 | . . 1 . . . . 2 . . . . 2 2 . . 1 . . 21 Average Slot Usage (%) 92 | . 89 99 98 99 97 99 95 94 94 94 94 86 87 84 88 90 87 81 69 Engine 3 | . 14 11 9 9 12 3 1 5 5 5 5 2 . . . . . . . Core 5 | . . . . . . 9 9 5 5 5 5 10 10 10 9 8 8 8 6 Reactor 1 | . . . . . . . . . . . . 2 3 . 3 4 4 5 5 Treads 3 | . . . 3 29 . . . . . . . . . . . . . . . Leg 5 | . 28 22 31 5 . . . . . . . . . . . . . . . Flight 18 | . . . . 1 38 40 35 35 35 35 35 21 21 21 18 17 17 16 13 Device 21 | . . 21 12 9 14 16 21 23 23 21 17 14 15 15 26 33 34 35 27 Storage 6 | . 14 11 9 9 7 6 5 5 5 5 5 8 5 5 4 4 4 4 3 Processor 10 | . . . 8 10 7 6 11 11 11 12 17 15 15 15 14 13 9 8 7 Protection 1 | . 4 11 5 . . . 1 . . . . . 5 5 1 . . . . Energy Gun 1 | . . . . 5 . 5 1 . . . . . 5 5 4 1 . . . Ballistic Gun 4 | . 28 22 12 8 7 . . . . . . . . . . . . . . Slashing Weapon 2 | . . . . . 7 6 5 5 5 5 5 5 5 1 3 2 3 . . Naked Turns . | . . . . . . . . . . . . . . . . . . . . Heaviest Build 72 | 9 12 22 30 27 27 36 35 35 35 35 32 47 47 43 54 63 59 68 72 Greatest Support 88 | 20 20 20 45 88 39 36 36 36 36 36 36 55 59 56 61 64 64 75 75 Greatest Overweight (x) 1 | . . 1 1 1 . . . . . . . . . . . 1 . . 1 Average Overweight (x) . | . . . . . . . . . . . . . . . . . . . . Largest Inventory Capacity 8 | 6 6 6 6 8 8 8 8 8 8 8 8 8 8 8 8 8 8 8 8 Average Capacity 7 | 6 6 6 6 6 8 8 8 8 8 8 8 8 8 8 8 8 8 8 7 Most Carried 8 | 5 2 6 6 8 8 8 8 8 8 8 8 8 8 8 8 8 8 8 8 Average Carried 7 | 4 2 5 5 6 7 7 7 7 8 7 8 7 7 8 7 7 7 8 7 Final Capacity 8 | 6 6 6 6 8 8 8 8 8 8 8 8 8 8 8 8 8 8 8 4 Final Carried 8 | 2 2 6 6 8 8 8 8 8 8 8 8 8 8 8 8 8 8 8 4 Class Distribution -------------------- 39% | Generator-Sprinter 32% | Sprinter 17% | Mutant 9% | Scavenger-Mutant Dominant Class ---------------- Mutant | -10/Materials Mutant | -9/Materials Scavenger-Mutant | -8/Materials Mutant | -8/Storage Sprinter | -7/Factory Sprinter | -6/Factory Sprinter | -5/Factory Sprinter | -5/Upper Caves Sprinter | -5/Upper Caves Sprinter | -5/Warlord Sprinter | -4/Proximity Caves Generator-Sprinter | -4/Factory Generator-Sprinter | -4/Armory Sprinter | -4/Lab Generator-Sprinter | -3/Research Generator-Sprinter | -2/Research Generator-Sprinter | -2/Quarantine Generator-Sprinter | -1/Access Generator-Sprinter | -1/Command Resources | -11 -10 -9 -8 -8 -7 -6 -5 -5 -5 -5 -4 -4 -4 -4 -3 -2 -2 -1 -1 ----------- Run | Scr Mat Mat Mat Sto Fac Fac Fac Upp Upp War Pro Fac Arm Lab Res Res Qua Acc Com Matter Collected 2467 | 176 . 245 220 106 170 130 . 139 19 . 17 127 56 . 284 573 120 . 85 Remotely . | . . . . . . . . . . . . . . . . . . . . Salvage Created 2647 | . . 515 472 156 42 39 . 55 . . . 127 . . 349 787 105 . . Parts 132 | . . 24 19 5 5 5 . 4 . . . 9 . . 13 43 5 . . Haulers Intercepted 1 | . . . 1 . . . . . . . . . . . . . . . . Recyclers Shooed 1 | . . . . 1 . . . . . . . . . . . . . . . Parts Field Recycled . | . . . . . . . . . . . . . . . . . . . . Retrieved Matter . | . . . . . . . . . . . . . . . . . . . . Parts Self-Destructed 2 | . . . . . . . . 2 . . . . . . . . . . . Prevented . | . . . . . . . . . . . . . . . . . . . . Kills | -11 -10 -9 -8 -8 -7 -6 -5 -5 -5 -5 -4 -4 -4 -4 -3 -2 -2 -1 -1 ------- Run | Scr Mat Mat Mat Sto Fac Fac Fac Upp Upp War Pro Fac Arm Lab Res Res Qua Acc Com Combat Hostiles Destroyed 30 | . . 11 6 3 . . . 1 . . . 1 . . . 8 . . . Melee 10 | . . . . . . . . 1 . . . 1 . . . 8 . . . Guns 12 | . . 11 1 . . . . . . . . . . . . . . . . Cannons 5 | . . . 4 1 . . . . . . . . . . . . . . . AOE 2 | . . . 1 1 . . . . . . . . . . . . . . . Classes Destroyed 13 | . . 3 4 . . . . . . . . 1 . . 3 1 1 . . Worker 4 | . . . 1 . 2 . . . . . . . . . . . 1 . . Builder 2 | . . . . . . . . . . . . . . . 1 1 . . . Hauler 1 | . . . 1 . . . . . . . . . . . . . . . . Recycler 4 | . . . . . . . . . . . . . . . 2 2 . . . Mechanic 1 | . . . . . . . . . . . . . . . 1 . . . . Watcher 8 | . . . 2 . . 1 . . . . . 2 . . 1 2 . . . Swarmer 5 | . . . . . . . . . . . . . . . . 5 . . . Grunt 17 | . . 9 5 1 . . . . . . . . . . . 2 . . . Brawler 1 | . . 1 . . . . . . . . . . . . . . . . . Researcher 1 | . . . . . . . . . . . . . . . . . 1 . . Sentry 3 | . . 1 . 1 . . . . . . . . . . . 1 . . . Hunter 3 | . . . 1 1 . . . 1 . . . . . . . . . . . Programmer 1 | . . . . . . . . . . . . 1 . . . . . . . Best Kill Streak 3 | . . 3 3 2 2 1 . 1 . . . 1 . . 1 3 1 . . Combat Bots Only 3 | . . 3 3 2 . . . 1 . . . 1 . . . 3 . . . Max Kills in Single Turn 2 | . . 2 2 1 1 1 . 1 . . . 1 . . 1 1 1 . . Gunslinging 1 | . . 1 . . . . . . . . . . . . . . . . . Exploded 1 | . . . 1 1 . . . . . . . . . . . . . . . Melee 1 | . . . . . . . . 1 . . . 1 . . . 1 . . . Uniques/NPCs Destroyed . | . . . . . . . . . . . . . . . . . . . . Combat | -11 -10 -9 -8 -8 -7 -6 -5 -5 -5 -5 -4 -4 -4 -4 -3 -2 -2 -1 -1 -------- Run | Scr Mat Mat Mat Sto Fac Fac Fac Upp Upp War Pro Fac Arm Lab Res Res Qua Acc Com Damage Taken 5849 | . . 404 207 323 . 38 309 57 12 . 110 506 216 13 55 107 147 . 3345 Core 2019 | . . 72 18 71 . . 31 40 . . . 167 . . . . . . 1620 Absorbed by Shields . | . . . . . . . . . . . . . . . . . . . . Core Remaining (%) 94 | 100 100 82 . 83 100 100 . . . . 92 . . 85 100 . 100 . . Volleys Fired 89 | . . 38 28 14 . . . . . . . . 1 7 . 1 . . . Largest 2 | . . 2 2 2 . . . . . . . . 1 1 . 1 . . . Hottest 94 | . . 43 86 93 . . . . . . . . 60 49 . 94 . . . Shots Fired 170 | . . 76 56 28 . . . . . . . . 1 7 . 2 . . . Gun 131 | . . 76 34 19 . . . . . . . . 1 . . 1 . . . Cannon 32 | . . . 22 9 . . . . . . . . . . . 1 . . . Launcher 7 | . . . . . . . . . . . . . . 7 . . . . . Special . | . . . . . . . . . . . . . . . . . . . . Kinetic 125 | . . 76 34 14 . . . . . . . . . . . 1 . . . Thermal 6 | . . . . 5 . . . . . . . . . . . 1 . . . Explosive 5 | . . . . . . . . . . . . . . 5 . . . . . Electromagnetic 33 | . . . 22 9 . . . . . . . . . 2 . . . . . Entropic 1 | . . . . . . . . . . . . . 1 . . . . . . Robot Hit Streak 23 | . . 8 23 11 . . . . . . . . . . . 2 . . . Robot Miss Streak 3 | . . 3 2 1 . . . . . . . . . . . . . . . Penetration Max . | . . . . . . . . . . . . . . . . . . . . Secondary Targets 1 | . . 1 . . . . . . . . . . . . . . . . . Max Gunslinging Chain 1 | . . 1 . . . . . . . . . . . . . . . . . Shots Hit Robots 176 | . . 49 43 18 2 1 1 3 . . . 14 1 . 15 17 2 2 8 Core Hits 81 | . . 27 18 4 2 1 . 2 . . . 5 . . 5 13 1 . 3 Critical Hits 7 | . . 1 3 1 . . . . . . . . . . . 1 . . 1 Critical Kills 1 | . . . . . . . . . . . . . . . . 1 . . . Critical Parts Destroyed 5 | . . 1 3 . . . . . . . . . . . . . . . 1 Melee Attacks 182 | . . . . 2 4 13 19 7 4 . 6 28 5 3 25 24 13 12 17 Kinetic 4 | . . . . . . . . . . . . . . . . . 1 3 . Impact 1 | . . . . . . . . . . . . . . . . . 1 . . Slashing 124 | . . . . 2 4 13 19 7 4 . 6 28 5 3 25 7 1 . . Piercing 53 | . . . . . . . . . . . . . . . . 17 10 9 17 Sneak Attacks 18 | . . . . . 2 . 1 . . . . . . . 7 5 2 1 . Combat Hostiles 2 | . . . . . . . . . . . . . . . . 2 . . . Follow-up Attacks 1 | . . . . . . . . . . . . . . . . 1 . . . Damage Inflicted 6792 | . . 460 1006 471 257 46 116 130 . . . 564 51 . 1191 1511 329 229 431 Guns 965 | . . 460 290 185 . . . . . . . . . . . 30 . . . Cannons 779 | . . . 573 206 . . . . . . . . . . . . . . . Explosions 223 | . . . 143 80 . . . . . . . . . . . . . . . Melee 4825 | . . . . . 257 46 116 130 . . . 564 51 . 1191 1481 329 229 431 Ramming . | . . . . . . . . . . . . . . . . . . . . Kinetic 1112 | . . 460 290 133 . . . . . . . . . . . . . 229 . Thermal 305 | . . . 143 132 . . . . . . . . . . . 30 . . . Explosive . | . . . . . . . . . . . . . . . . . . . . Electromagnetic 779 | . . . 573 206 . . . . . . . . . . . . . . . Impact 102 | . . . . . . . . . . . . . . . . . 102 . . Slashing 2604 | . . . . . 257 46 116 130 . . . 564 51 . 1191 249 . . . Piercing 1890 | . . . . . . . . . . . . . . . . 1232 227 . 431 Highest Corruption 25 | . . . . 2 . . 3 3 3 3 . 2 4 4 . 7 1 2 25 Average Corruption 2 | . . . . 1 . . 3 3 3 3 . 1 3 4 . 2 1 2 6 Corruption Purged 7 | . . . . . . . . . . . . . . . . 7 . . . Effects 34 | . . . . 1 . . 4 3 2 . . . 1 1 . 11 . 2 9 Message Errors 8 | . . . . 1 . . . 1 . . . . 1 . . 2 . 1 2 Matter Fused 11 | . . . . . . . 3 2 1 . . . . . . 3 . . 2 Heat Flow Errors 3 | . . . . . . . . . 1 . . . . . . 1 . 1 . Energy Discharges 4 | . . . . . . . 1 . . . . . . . . 1 . . 2 Data Loss (minor) 2 | . . . . . . . . . . . . . . . . 1 . . 1 Misfires 1 | . . . . . . . . . . . . . . . . 1 . . . Misdirections 1 | . . . . . . . . . . . . . . . . . . . 1 Targeting Errors 4 | . . . . . . . . . . . . . . 1 . 2 . . 1 Overload Shots . | . . . . . . . . . . . . . . . . . . . . Overflow Damage 766 | . . . 16 . . . 76 . . . . 43 . . 347 58 77 149 . Projectiles 16 | . . . 16 . . . . . . . . . . . . . . . . Explosions . | . . . . . . . . . . . . . . . . . . . . Melee 750 | . . . . . . . 76 . . . . 43 . . 347 58 77 149 . Knockbacks 1 | . . . . . . . . . . . . . . . . . 1 . . Impact 1 | . . . . . . . . . . . . . . . . . 1 . . Kinetic . | . . . . . . . . . . . . . . . . . . . . Secondary . | . . . . . . . . . . . . . . . . . . . . Self-Inflicted Damage 64 | . . . . 51 . . . . . . . . . 13 . . . . . Shots 2 | . . . . 1 . . . . . . . . . 1 . . . . . Rammed . | . . . . . . . . . . . . . . . . . . . . Targets Rammed . | . . . . . . . . . . . . . . . . . . . . Kicked . | . . . . . . . . . . . . . . . . . . . . Crushed . | . . . . . . . . . . . . . . . . . . . . Highest Temperature 332 | . . 23 117 84 53 278 141 187 253 332 280 244 8 . . 164 . 192 . Average Temperature 88 | . . 6 33 31 18 80 51 77 107 195 111 121 8 . . 58 . 94 . Received Heat Transfer 636 | . . 207 90 27 . 18 9 . . . 9 78 18 . 9 . . . 171 Effects 3 | . . . . . . 1 . . . 2 . . . . . . . . . Shutdowns 1 | . . . . . . . . . . 1 . . . . . . . . . Interference 2 | . . . . . . 1 . . . 1 . . . . . . . . . Siege Activations . | . . . . . . . . . . . . . . . . . . . . Robots Corrupted 1 | . . . . 1 . . . . . . . . . . . . . . . Combat Hostiles 1 | . . . . 1 . . . . . . . . . . . . . . . Parts Fried 6 | . . . 3 2 . . . . . . . . . . . . 1 . . Impact Corruptions 2 | . . . . . . . . . . . . . . . . . 2 . . Robots Melted . | . . . . . . . . . . . . . . . . . . . . Combat Hostiles . | . . . . . . . . . . . . . . . . . . . . Parts Melted . | . . . . . . . . . . . . . . . . . . . . Heat Transferred 361 | . . . 150 174 . . . . . . . . . . . 37 . . . Parts Sabotaged . | . . . . . . . . . . . . . . . . . . . . Parts Stolen . | . . . . . . . . . . . . . . . . . . . . Parts Stripped . | . . . . . . . . . . . . . . . . . . . . Power Chain Reactions 4 | . . . 2 2 . . . . . . . . . . . . . . . Missiles Intercepted . | . . . . . . . . . . . . . . . . . . . . Alert | -11 -10 -9 -8 -8 -7 -6 -5 -5 -5 -5 -4 -4 -4 -4 -3 -2 -2 -1 -1 ------- Run | Scr Mat Mat Mat Sto Fac Fac Fac Upp Upp War Pro Fac Arm Lab Res Res Qua Acc Com Peak Influence 756 | . 14 290 177 149 33 36 478 . . . . 366 548 . 197 203 201 218 756 Initial 174 | . . 5 14 24 9 16 7 . . . . 9 174 . . 31 57 120 139 Average 124 | . 6 111 52 81 28 18 268 . . . . 171 302 . 95 107 122 141 445 Maximum Alert Level 3 | . . 1 . . . . 2 . . . . 1 2 . . 1 1 1 3 Low Security (%) 84 | 100 100 71 100 100 100 100 40 . . . . 63 41 . 100 95 94 95 10 Level 1 9 | . . 28 . . . . 20 . . . . 36 31 . . 4 5 4 37 Level 2 5 | . . . . . . . 39 . . . . . 27 . . . . . 40 Level 3 . | . . . . . . . . . . . . . . . . . . . 11 Level 4 . | . . . . . . . . . . . . . . . . . . . . Level 5 . | . . . . . . . . . . . . . . . . . . . . High Security . | . . . . . . . . . . . . . . . . . . . . Max Security . | . . . . . . . . . . . . . . . . . . . . Squads Dispatched 18 | . . 2 . . . 2 . . . . . 2 2 . . . 4 3 3 Investigation 7 | . . 1 . . . . . . . . . 1 2 . . . . 2 1 Extermination 3 | . . . . . . 1 . . . . . 1 . . . . 1 . . Reinforcement 8 | . . 1 . . . 1 . . . . . . . . . . 3 1 2 Assault . | . . . . . . . . . . . . . . . . . . . . Garrison . | . . . . . . . . . . . . . . . . . . . . Intercept . | . . . . . . . . . . . . . . . . . . . . Construction Impeded . | . . . . . . . . . . . . . . . . . . . . Haulers Reinforced . | . . . . . . . . . . . . . . . . . . . . Stealth | -11 -10 -9 -8 -8 -7 -6 -5 -5 -5 -5 -4 -4 -4 -4 -3 -2 -2 -1 -1 --------- Run | Scr Mat Mat Mat Sto Fac Fac Fac Upp Upp War Pro Fac Arm Lab Res Res Qua Acc Com Distress Signals 28 | . . . 1 . . . 2 . . . . . 2 . . 16 6 . 1 Communications Jammed 25 | . . . . . . . . . . . . . 1 . 6 6 3 . 9 Distress Signals 21 | . . . . . . . . . . . . . . . 6 6 . . 9 Times Spotted 177 | . . 14 11 4 . 4 24 7 4 . 4 14 19 . 4 21 5 2 40 Peak Tracking Total 17 | . . 3 4 2 . 3 12 7 4 . 6 7 17 . 2 5 3 1 17 Tactical Retreats 27 | . . 2 1 . . . 7 . 1 . 1 1 3 . 1 3 1 . 6 Traps | -11 -10 -9 -8 -8 -7 -6 -5 -5 -5 -5 -4 -4 -4 -4 -3 -2 -2 -1 -1 ------- Run | Scr Mat Mat Mat Sto Fac Fac Fac Upp Upp War Pro Fac Arm Lab Res Res Qua Acc Com Traps Triggered 7 | . . 1 . 2 . . . . . . . 1 . . 1 . . 2 . Indirectly . | . . . . . . . . . . . . . . . . . . . . Trap Hack Attempts . | . . . . . . . . . . . . . . . . . . . . Triggered . | . . . . . . . . . . . . . . . . . . . . Disarmed . | . . . . . . . . . . . . . . . . . . . . Reprogrammed . | . . . . . . . . . . . . . . . . . . . . Reused . | . . . . . . . . . . . . . . . . . . . . Traps Extracted . | . . . . . . . . . . . . . . . . . . . . Installed . | . . . . . . . . . . . . . . . . . . . . Triggered 11 | . . . . . . . . . . 11 . . . . . . . . . Machines | -11 -10 -9 -8 -8 -7 -6 -5 -5 -5 -5 -4 -4 -4 -4 -3 -2 -2 -1 -1 ---------- Run | Scr Mat Mat Mat Sto Fac Fac Fac Upp Upp War Pro Fac Arm Lab Res Res Qua Acc Com Machines Disabled 11 | . . . . 3 . . . . . . . . 1 1 . 1 4 . 1 Max in Single Turn 1 | . . . . 1 . . . . . . . . 1 1 . 1 1 . 1 Garrison Access 1 | . . . . . . . . . . . . . . . . . . 1 . Machines Sabotaged . | . . . . . . . . . . . . . . . . . . . . Garrisons Compromised . | . . . . . . . . . . . . . . . . . . . . Overloaded Fab Kills . | . . . . . . . . . . . . . . . . . . . . Fab Network Shutdowns . | . . . . . . . . . . . . . . . . . . . . Hacking | -11 -10 -9 -8 -8 -7 -6 -5 -5 -5 -5 -4 -4 -4 -4 -3 -2 -2 -1 -1 --------- Run | Scr Mat Mat Mat Sto Fac Fac Fac Upp Upp War Pro Fac Arm Lab Res Res Qua Acc Com Machines Accessed 46 | . 2 1 . 3 2 1 . 1 . 5 . 4 5 . 1 3 6 7 5 Terminals 31 | . 2 1 . 3 2 . . . . . . 3 4 . . 2 5 4 5 Fabricators 4 | . . . . . . 1 . . . . . 1 1 . . . . 1 . Repair Stations . | . . . . . . . . . . . . . . . . . . . . Recycling Units . | . . . . . . . . . . . . . . . . . . . . Scanalyzers 1 | . . . . . . . . . . . . . . . 1 . . . . Garrison Access 4 | . . . . . . . . . . . . . . . . 1 1 2 . Total Hacks 102 | . 10 4 . 6 3 1 . 1 . 11 . 7 14 . 2 6 11 17 9 Successful 47 | . 2 3 . 4 1 . . 1 . 11 . 3 . . 2 3 4 8 5 Failed 55 | . 8 1 . 2 2 1 . . . . . 4 14 . . 3 7 9 4 Catastrophic 17 | . 4 . . . 1 . . . . . . 2 4 . . 1 2 . 3 Database Lockouts . | . . . . . . . . . . . . . . . . . . . . Manual 38 | . 5 3 . 3 3 . . . . . . 3 2 2 . 4 7 3 3 Terminals 76 | . 10 4 . 6 3 . . . . . . 6 13 . . 5 9 11 9 Fabricators 6 | . . . . . . 1 . . . . . 1 1 . . . . 3 . Repair Stations . | . . . . . . . . . . . . . . . . . . . . Recycling Units . | . . . . . . . . . . . . . . . . . . . . Scanalyzers 2 | . . . . . . . . . . . . . . . 2 . . . . Garrison Access 6 | . . . . . . . . . . . . . . . . 1 2 3 . Terminal Hacks 27 | . 1 1 . 2 . . . 1 . 11 . . . . . 1 2 4 4 Record 7 | . . . . . . . . . . 3 . . . . . 1 2 . 1 Robot Analysis 1 | . . . . . . . . . . . . . . . . . . . 1 Prototype ID Bank 6 | . . . . . . . . . . 6 . . . . . . . . . Open Door 9 | . . . . 2 . . . 1 . 2 . . . . . . . 3 1 Branch Access Points 1 | . 1 . . . . . . . . . . . . . . . . . . Unreport Threat 1 | . . 1 . . . . . . . . . . . . . . . . . Recall Investigation 1 | . . . . . . . . . . . . . . . . . . 1 . Disengage Seal 1 | . . . . . . . . . . . . . . . . . . . 1 Fabricator Hacks 3 | . . . . . . . . . . . . 1 . . . . . 2 . Load Schematic 1 | . . . . . . . . . . . . . . . . . . 1 . Build 2 | . . . . . . . . . . . . 1 . . . . . 1 . Repair Station Hacks . | . . . . . . . . . . . . . . . . . . . . Recycling Unit Hacks . | . . . . . . . . . . . . . . . . . . . . Scanalyzer 2 | . . . . . . . . . . . . . . . 2 . . . . Insert Component 1 | . . . . . . . . . . . . . . . 1 . . . . Analyze 1 | . . . . . . . . . . . . . . . 1 . . . . Garrison Access Hacks 1 | . . . . . . . . . . . . . . . . . . 1 . Seal Access 1 | . . . . . . . . . . . . . . . . . . 1 . Unauthorized Hacks 14 | . 1 2 . 2 1 . . . . . . 2 . . . 2 2 1 1 Terminals 14 | . 1 2 . 2 1 . . . . . . 2 . . . 2 2 1 1 Assimilate 2 | . . . . . . . . . . . . 2 . . . . . . . Botnet 10 | . 1 1 . 1 1 . . . . . . . . . . 2 2 1 1 Operators 2 | . . 1 . 1 . . . . . . . . . . . . . . . Fabricators . | . . . . . . . . . . . . . . . . . . . . Repair Stations . | . . . . . . . . . . . . . . . . . . . . Recycling Units . | . . . . . . . . . . . . . . . . . . . . Scanalyzers . | . . . . . . . . . . . . . . . . . . . . Garrison Access . | . . . . . . . . . . . . . . . . . . . . Data Cores Recovered . | . . . . . . . . . . . . . . . . . . . . Used . | . . . . . . . . . . . . . . . . . . . . Hacking Detections 33 | . 2 1 . 2 2 1 . . . . . 3 5 . . 3 4 5 5 Full Trace Events 6 | . 1 . . . . . . . . . . 1 2 . . . . 1 1 Feedback Events . | . . . . . . . . . . . . . . . . . . . . Feedback Blocked . | . . . . . . . . . . . . . . . . . . . . Robot Schematics Acquired . | . . . . . . . . . . . . . . . . . . . . Robots Built 1 | . . . . . . . . . . . . 1 . . . . . . . Matter 153 | . . . . . . . . . . . . 153 . . . . . . . Time 40 | . . . . . . . . . . . . 40 . . . . . . . Total Robot Build Rating 1 | . . . . . . . . . . . . 1 . . . . . . . Part Schematics Acquired 1 | . . . . . . . . . . . . . . . 1 . . . . Parts Built . | . . . . . . . . . . . . . . . . . . . . Matter 219 | . . . . . . . . . . . . . . . . . . 219 . Time 58 | . . . . . . . . . . . . . . . . . . 58 . Total Part Build Rating . | . . . . . . . . . . . . . . . . . . . . Parts Repaired . | . . . . . . . . . . . . . . . . . . . . Time . | . . . . . . . . . . . . . . . . . . . . Parts Recycled . | . . . . . . . . . . . . . . . . . . . . Recycled Matter . | . . . . . . . . . . . . . . . . . . . . Retrieved Matter . | . . . . . . . . . . . . . . . . . . . . Retrieved Components . | . . . . . . . . . . . . . . . . . . . . Parts Scanalyzed 1 | . . . . . . . . . . . . . . . 1 . . . . Part Schematics Acquired 1 | . . . . . . . . . . . . . . . 1 . . . . Parts Damaged . | . . . . . . . . . . . . . . . . . . . . Bothacking | -11 -10 -9 -8 -8 -7 -6 -5 -5 -5 -5 -4 -4 -4 -4 -3 -2 -2 -1 -1 ------------ Run | Scr Mat Mat Mat Sto Fac Fac Fac Upp Upp War Pro Fac Arm Lab Res Res Qua Acc Com Used RIF Installer . | . . . . . . . . . . . . . . . . . . . . Robots Hacked . | . . . . . . . . . . . . . . . . . . . . Non-combat . | . . . . . . . . . . . . . . . . . . . . Combat . | . . . . . . . . . . . . . . . . . . . . Robot Hacks Applied . | . . . . . . . . . . . . . . . . . . . . Relay Couplers Released 3 | . . . . . . . . . . . . . . . . 3 . . . Programmers 3 | . . . . . . . . . . . . . . . . 3 . . . Robots Rewired 1 | . . . . . . 1 . . . . . . . . . . . . . Allies Hacked . | . . . . . . . . . . . . . . . . . . . . Hacks Repelled . | . . . . . . . . . . . . . . . . . . . . Allies | -11 -10 -9 -8 -8 -7 -6 -5 -5 -5 -5 -4 -4 -4 -4 -3 -2 -2 -1 -1 -------- Run | Scr Mat Mat Mat Sto Fac Fac Fac Upp Upp War Pro Fac Arm Lab Res Res Qua Acc Com Total Allies 3 | . . . . . . 1 . . . . . 2 . . . . . . . Largest Group 1 | . . . . . . 1 . . . . . 1 . . . . . . . Highest-Rated Group 44 | . . . . . . 37 . . . . . 44 . . . . . . . Highest-Rated Ally 44 | . . . . . . 37 . . . . . 44 . . . . . . . Total Orders . | . . . . . . . . . . . . . . . . . . . . Ally Attacks . | . . . . . . . . . . . . . . . . . . . . Total Damage . | . . . . . . . . . . . . . . . . . . . . Kills . | . . . . . . . . . . . . . . . . . . . . Allies Corrupted . | . . . . . . . . . . . . . . . . . . . . Allies Melted 1 | . . . . . . . . . . . . . . . . 1 . . . Intel | -11 -10 -9 -8 -8 -7 -6 -5 -5 -5 -5 -4 -4 -4 -4 -3 -2 -2 -1 -1 ------- Run | Scr Mat Mat Mat Sto Fac Fac Fac Upp Upp War Pro Fac Arm Lab Res Res Qua Acc Com Robot Analysis Total 1 | . . . . . . . . . . . . . . . . . . . 1 Derelict Logs Recovered . | . . . . . . . . . . . . . . . . . . . . Drone Launches . | . . . . . . . . . . . . . . . . . . . . Drone Recoveries . | . . . . . . . . . . . . . . . . . . . . Decoded 0b10 Intel 40 | . . . . . . . . . . . . 7 5 . 9 17 2 . . Traps 10 | . . . . . . . . . . . . 5 1 . 3 1 . . . Emergency Access 27 | . . . . . . . . . . . . 2 4 . 4 16 1 . . Garrisons 2 | . . . . . . . . . . . . . . . 1 . 1 . . Exits 1 | . . . . . . . . . . . . . . . 1 . . . . Exploration | -11 -10 -9 -8 -8 -7 -6 -5 -5 -5 -5 -4 -4 -4 -4 -3 -2 -2 -1 -1 ------------- Run | Scr Mat Mat Mat Sto Fac Fac Fac Upp Upp War Pro Fac Arm Lab Res Res Qua Acc Com Turns Passed 6455 | 2 70 478 574 638 171 523 447 153 247 158 111 315 159 69 494 1031 286 299 230 Spaces Moved 10342 | 1 58 223 342 370 318 973 559 311 390 528 345 657 351 114 801 2234 508 681 578 Core 1 | . . . . . . . . . . . . . . . . . . . 1 Treads 342 | . . . 46 296 . . . . . . . . . . . . . . . Legs 629 | 1 58 223 296 51 . . . . . . . . . . . . . . . Wheels . | . . . . . . . . . . . . . . . . . . . . Hover . | . . . . . . . . . . . . . . . . . . . . Flight 9370 | . . . . 23 318 973 559 311 390 528 345 657 351 114 801 2234 508 681 577 Fastest Speed 20 | 120 120 120 120 26 23 20 20 20 20 20 20 20 28 29 29 31 31 29 25 Average Speed 36 | 120 120 135 127 137 23 20 20 20 20 20 20 26 28 29 30 31 31 29 29 Slowest Speed 170 | 120 120 150 170 165 23 20 20 20 20 20 20 32 29 29 31 114 31 32 105 Overloaded Moves . | . . . . . . . . . . . . . . . . . . . . Propulsion Burnouts . | . . . . . . . . . . . . . . . . . . . . Robots Hopped 25 | . . . . . . 7 7 . . 2 . 2 1 . . 4 . . 2 Cave-ins Triggered 1 | . . . . . . . 1 . . . . . . . . . . . . Exploration Rate (%) 32 | 2 20 21 21 48 10 22 19 55 55 90 59 20 37 6 19 52 43 15 36 Regions Visited 19 Branch Regions 9 Pre-discovered Areas . | . . . . . . . . . . . . . . . . . . . . Known Exits Taken 16 | . . . 1 1 1 1 1 1 1 1 1 1 1 1 1 1 1 1 . Unknown Exits Taken 3 | 1 1 1 . . . . . . . . . . . . . . . . . Scrap Searched 3 | . . . . . . . . 1 1 . 1 . . . . . . . . Spaces Dug 96 | . . . . 2 2 8 17 2 4 . 6 3 2 16 9 5 3 10 7 Terrain Destroyed 157 | . . . 9 12 2 8 17 2 4 . 6 3 2 58 9 5 3 10 7 Melee 80 | . . . . 2 2 8 17 2 4 . 6 3 2 . 9 5 3 10 7 Projectile 3 | . . . . 3 . . . . . . . . . . . . . . . AOE 74 | . . . 9 7 . . . . . . . . . 58 . . . . . Terrain Rammed . | . . . . . . . . . . . . . . . . . . . . Walls Destroyed . | . . . . . . . . . . . . . . . . . . . . Machines Disabled . | . . . . . . . . . . . . . . . . . . . . Actions | -11 -10 -9 -8 -8 -7 -6 -5 -5 -5 -5 -4 -4 -4 -4 -3 -2 -2 -1 -1 --------- Run | Scr Mat Mat Mat Sto Fac Fac Fac Upp Upp War Pro Fac Arm Lab Res Res Qua Acc Com Total 12614 | 4 58 342 429 475 409 1275 861 390 552 578 377 755 400 136 1017 2552 630 762 612 Wait 1566 | . . 54 27 37 77 264 267 67 159 45 27 31 31 11 144 197 76 48 4 Move 10277 | . 57 222 341 369 317 960 545 310 389 524 344 652 348 113 800 2225 507 680 574 Hop 21 | . . . . . . 5 6 . . 1 . 2 1 . . 4 . . 2 Pick Up 74 | . . 6 6 13 3 5 4 1 . 1 . 7 3 . 8 12 5 . . Fast Attach 110 | . 1 3 5 9 3 8 4 2 . 2 . 8 2 . 12 31 8 10 2 Attach 21 | . . 1 2 . 1 1 3 . . 1 . 3 1 . 1 2 1 . 4 Detach 13 | . . . . . 1 1 1 . . 1 . 1 . . 1 1 1 1 4 Swap 67 | . . 8 6 9 . 4 3 . . . . 4 4 2 9 12 3 2 1 Drop 188 | 4 . 10 14 22 3 12 9 3 . 3 . 13 4 . 17 44 17 9 4 Fire 89 | . . 38 28 14 . . . . . . . . 1 7 . 1 . . . Melee 180 | . . . . 2 4 13 19 7 4 . 6 28 5 3 25 23 12 12 17 Ram . | . . . . . . . . . . . . . . . . . . . . Kick . | . . . . . . . . . . . . . . . . . . . . Crush . | . . . . . . . . . . . . . . . . . . . . Escape Stasis 6 | . . . . . . . . . . . . 6 . . . . . . . Rewire 2 | . . . . . . 2 . . . . . . . . . . . . . Trap . | . . . . . . . . . . . . . . . . . . . . Miscellaneous . | . . . . . . . . . . . . . . . . . . . . Route ------- -11/Scrapyard -10/Materials (discovered 2 exits: *Mat / Min) -9/Materials -8/Materials (discovered 2 exits: *Sto x2) -8/Storage -7/Factory -6/Factory -5/Factory (discovered 2 exits: *Fac / *Upp) -5/Upper Caves -5/Upper Caves (discovered 2 exits: *Fac / *War) -5/Warlord -4/Proximity Caves -4/Factory -4/Armory -4/Lab -3/Research -2/Research (discovered 2 exits: *Acc / *Qua) -2/Quarantine -1/Access -1/Command History --------- Turn | Location | Event 3 | -11/Scrapyard | Discovered new exit (range 0) 3 | -11/Scrapyard | Entered Materials 41 | -10/Materials | Identified exit to Mines 60 | -10/Materials | Discovered new exit (range 8) 73 | -10/Materials | Entered another Materials area 73 | -9/Materials | Evolved 2 slots: Utility x2 351 | -9/Materials | Build established: Mutant 528 | -9/Materials | Discovered new exit (range 10) 551 | -9/Materials | Entered another Materials area 551 | -8/Materials | Evolved 2 slots: Propulsion x2 551 | -8/Materials | Discovered new exit (range 10) 551 | -8/Materials | Discovered new exit (range 11) 860 | -8/Materials | Build established: Scavenger-Mutant 1103 | -8/Materials | Identified exit to Storage 1125 | -8/Materials | Entered Storage 1491 | -8/Storage | Build established: Mutant 1689 | -8/Storage | Discovered new exit (range 15) 1709 | -8/Storage | Identified exit to Factory 1763 | -8/Storage | Entered Factory 1763 | -7/Factory | Evolved 2 slots: Power x1, Propulsion x1 1852 | -7/Factory | Discovered new exit (range 9) 1855 | -7/Factory | Identified exit to Factory 1934 | -7/Factory | Entered another Factory area 1934 | -6/Factory | Evolved 2 slots: Propulsion x1, Utility x1 2036 | -6/Factory | Build established: Sprinter 2451 | -6/Factory | Discovered new exit (range 8) 2452 | -6/Factory | Identified exit to Factory 2457 | -6/Factory | Entered another Factory area 2457 | -5/Factory | Evolved 2 slots: Utility x2 2574 | -5/Factory | Crushed by falling debris 2715 | -5/Factory | Discovered new exit (range 15) 2899 | -5/Factory | Identified exit to Factory 2902 | -5/Factory | Discovered new exit (range 5) 2903 | -5/Factory | Identified exit to Upper Caves 2904 | -5/Factory | Entered Upper Caves 3050 | -5/Upper Caves | Discovered new exit (range 8) 3056 | -5/Upper Caves | Identified exit to Upper Caves 3057 | -5/Upper Caves | Entered another Upper Caves area 3059 | -5/Upper Caves | Encountered a Warlord checkpoint 3059 | -5/Upper Caves | Discovered exit to Factory (range 6) 3301 | -5/Upper Caves | Discovered new exit (range 16) 3304 | -5/Upper Caves | Identified exit to Warlord 3304 | -5/Upper Caves | Entered Warlord 3312 | -5/Warlord | System corruption cleaned by Quarantine Array 3347 | -5/Warlord | Met Warlord 3372 | -5/Warlord | Warlord's base attacked by MAIN.C 3383 | -5/Warlord | Found Prototype Energy Gun 3384 | -5/Warlord | Identified Vortex Shotgun 3387 | -5/Warlord | Found Prototype Energy Gun 3387 | -5/Warlord | Identified Vortex Rail 3394 | -5/Warlord | Learned Quarantine trap positions 3457 | -5/Warlord | Opened side exit 3460 | -5/Warlord | Discovered new exit (range 10) 3462 | -5/Warlord | Identified exit to Proximity Caves 3462 | -5/Warlord | Entered Proximity Caves 3488 | -4/Proximity Caves | Spotted B-86 Titan 3533 | -4/Proximity Caves | Attracted the attention of an 0b10 checkpoint 3571 | -4/Proximity Caves | Discovered exit to Factory (range 7) 3573 | -4/Proximity Caves | Entered Factory 3573 | -4/Factory | Evolved 2 slots: Power x1, Utility x1 3582 | -4/Factory | Spotted B-86 Titan 3879 | -4/Factory | Fabricated R-06 Scavenger? 3883 | -4/Factory | Discovered new exit (range 8) 3884 | -4/Factory | Identified exit to Armory 3885 | -4/Factory | Build established: Generator-Sprinter 3888 | -4/Factory | Entered Armory 3892 | -4/Armory | Found Prototype Launcher 3892 | -4/Armory | Identified Com. Tesla Bomb Launcher 3898 | -4/Armory | Found Com. Tesla Bomb Launcher 3972 | -4/Armory | Spotted B-86 Titan 4044 | -4/Armory | Discovered new exit (range 4) 4046 | -4/Armory | Identified exit to Lab 4047 | -4/Armory | Entered Lab 4047 | -4/Lab | Discovered new exit (range 9) 4050 | -4/Lab | Identified exit to Research 4051 | -4/Lab | Unable to decrypt terminal 4063 | -4/Lab | Unable to decrypt terminal 4116 | -4/Lab | Entered Research 4116 | -3/Research | Evolved 2 slots: Utility x2 4317 | -3/Research | Found Prototype Processor 4317 | -3/Research | Identified Exp. Melee Analysis Suite 4353 | -3/Research | Spotted B-86 Titan 4359 | -3/Research | Found Prototype Processor 4359 | -3/Research | Identified Exp. Signal Interpreter 4514 | -3/Research | Identified exit to Research 4610 | -3/Research | Entered another Research area 4610 | -2/Research | Warlord forces began assault on 0b10 4610 | -2/Research | Evolved 2 slots: Utility x2 4654 | -2/Research | Met up with Warlord 4720 | -2/Research | Research machine network offline 4733 | -2/Research | Found Fusion Bomb Launcher 4899 | -2/Research | Discovered new exit (range 10) 4901 | -2/Research | Identified exit to Quarantine 4922 | -2/Research | Borebot progress halted 4954 | -2/Research | Found Prototype Processor 4954 | -2/Research | Identified Exp. Terrain Scan Processor 5057 | -2/Research | Discovered new exit (range 5) 5071 | -2/Research | Identified exit to Access 5097 | -2/Research | Found Prototype Slashing Weapon 5097 | -2/Research | Identified Vibroblade 5142 | -2/Research | Borebot progress halted 5190 | -2/Research | Spotted B-90 Cyclops 5222 | -2/Research | Found Prototype Launcher 5222 | -2/Research | Identified Enh. Gamma Bomb Array 5304 | -2/Research | Found Prototype Device 5304 | -2/Research | Identified Exp. ECM Suite 5311 | -2/Research | Borebot progress halted 5474 | -2/Research | Spotted Striker 5560 | -2/Research | Warlord destroyed during the assault 5641 | -2/Research | Entered Quarantine 5642 | -2/Quarantine | Loaded intel: 16 trap records 5729 | -2/Quarantine | Met incapacitated Sigix Warrior 5729 | -2/Quarantine | Lockdown squad dispatched 5734 | -2/Quarantine | Acquired the access code to the Sigix quarantine chamber 5735 | -2/Quarantine | Unlocked Sigix quarantine chamber 5767 | -2/Quarantine | Found Sigix Corpse 5773 | -2/Quarantine | Found Sigix Corpse 5811 | -2/Quarantine | Discovered exit to Access (range 3) 5822 | -2/Quarantine | Found Alien Artifact 5822 | -2/Quarantine | Identified Phase Redirector 5887 | -2/Quarantine | Found Alien Impact Weapon 5887 | -2/Quarantine | Identified Core Stripper 5927 | -2/Quarantine | Entered Access 5927 | -1/Access | Evolved 2 slots: Power x1, Utility x1 5954 | -1/Access | Found Prototype Processor 5954 | -1/Access | Identified Exp. Core Analyzer 6104 | -1/Access | Found Enh. Force Lance 6182 | -1/Access | Spotted B-99 Colossus 6198 | -1/Access | Spotted B-99 Colossus 6224 | -1/Access | Discovered new exit (range 7) 6225 | -1/Access | Identified exit to Command 6226 | -1/Access | Entered Command 6271 | -1/Command | Disengaged cave seal 6405 | -1/Command | Spotted M Guard 6405 | -1/Command | Spotted M Guard 6408 | -1/Command | Spotted Combat Programmer 6408 | -1/Command | Spotted Combat Programmer 6414 | -1/Command | System corruption reached 10% 6424 | -1/Command | Met MAIN.C 6427 | -1/Command | 0b10 Conduit disabled 6442 | -1/Command | Core integrity fell below 50% 6453 | -1/Command | Core integrity fell below 20% 6456 | -1/Command | Destroyed by Combat Programmer with EMDS Last Messages --------------- 06429_ GTCK2YJU/=UTHIBCKXCWR :WNCKOO4M:P 06433_ EMDS Slug penetrates MAIN.C. 06434_ Penetrated by EMDS Slug. 06441_ Mic. Fission Core destroyed. 06443_ Penetrated by EMDS Slug. 06444_ System corrupted: Enh. Force Lance targeting data glitched. 06445_ Electron Diverter destroyed. 06445_ Penetrated by EMDS Slug. 06448_ Exp. Signal Interpreter destroyed. 06448_ Adv. Weight Redist. System destroyed. 06448_ Med. Storage Unit destroyed. 06449_ Penetrated by EMDS Slug. 06452_ Adv. Transmission Jammer destroyed. 06452_ EMDS Slug penetrates P-80 Master. 06454_ Penetrated by EMDS Slug. 06454_ Combat Programmer resets P-80 Master, system corruption cleaned. 06456_ Penetrated by EMDS Slug. 06456_ Enh. Force Lance destroyed. 06456_ Exp. Melee Analysis Suite destroyed. Map ----- +----------------------------------------------------+ | ?????????????????????????????????????????????????? | | ?????????????????????????????????????????????????? | | ?????????????????????????????????????????????????? | | ?????????????????????????????????????????????????? | | ?????????????????????????????????????????????????? | | ?????????????????????????????????????????????????? | | ?????????????????????????????????????????????????? | | ?????????????????????????????????????????????????? | | ?????????????????????????????????????????????????? | | ?????????????????????????????????????????????????? | | ?????????????????????????????????????????????????? | | ?????????????????????????????????????????????????? | | ?????????????????????????????????????????????????? | | ?????????????????????????????????????????????????? | | ??????????????????????????#############??????????? | | ???????????????????????? """" #??????????? | | ????????????????#??????? "" #??????????? | | ????????????????#"????? "" ############ | | ????????????????# ""?""""""" + | | ????????????????#" " """ + | | ????????????????#"" """""" ; | | ????????????????#"" """""" ############ | | ????????????????# " """"" #??????????? | | ????????????????# " " Y #??????????? | | ????????????????# " MMM ""#??????????? | | ????????????????#"""""""*@MMM """""""#??????????? | | ????????????????#"" ppMMM """"""""#??????????? | | ????????????????# p " """""""""#??????????? | | ????????????????# " " " #??????????? | | ????????????????# " " " " #??????????? | | ????????????????" " " " """" " #??????????? | | ????????????????" """ " " """" #??????????? | | ????????????????" " " " " ?????????????? | | ????????????????# """""""""" " ?????????????? | | ????????????????# " """ " """"""?????????????? | | ????????????????# """ " " " ?????????????? | | ????????????????###?#???#######?##???????????????? | | ?????????????????????????????????????????????????? | | ?????????????????????????????????????????????????? | | ?????????????????????????????????????????????????? | | ?????????????????????????????????????????????????? | | ?????????????????????????????????????????????????? | | ?????????????????????????????????????????????????? | | ?????????????????????????????????????????????????? | | ?????????????????????????????????????????????????? | | ?????????????????????????????????????????????????? | | ?????????????????????????????????????????????????? | | ?????????????????????????????????????????????????? | | ?????????????????????????????????????????????????? | | ?????????????????????????????????????????????????? | +----------------------------------------------------+ Best States ------------- Heat Dissipation 165 Energy Generation 71 Energy Capacity 1280 Matter Stores 304 Matter Capacity 700 Sight Range 16 Robot Scan Range 16 Terrain Scan Density 10 ECM Strength 5 Jamming Range 16 Cloak Strength 4 Power Amplification 50 Additional Mass Support 9 Armor Coverage 225 Resistance: TH 20 Propulsion Shielding 66 Melee Speed Boost 50 Phase Shifting 10 Evasion (%) 89 Melee Accuracy 20 Target Analysis 5 Recoil Reduction 4 Matter Filtering 50 Offensive Hacking 10 Item Schematics ----------------- Imp. VTOL Module | -3/Research | Scanalyzed Robot Schematics ------------------ None Fabricated ------------ R-06 Scavenger | x1 | -4/Factory | Preloaded Alien Tech Used ----------------- Phase Redirector Core Stripper Achievements -------------- All-out Warlord False Reunion Meet Your Maker Watch This! Challenges ------------ None Game ------ Seed AluminumTractorWarhead Manual? 0 Play Time 02:34:40 Cumulative 305.2 hours Start 2021.04.02 @ 20:24:57 End 2021.04.03 @ 00:25:09 Sessions 3 Manual Loads 0 Difficulty Rogue Special Mode None Game No. 444 Rogue 443 Adventurer 0 Explorer 1 Win Type - Total 2 Types 2/0/0/0/0/0/0/0/0 Lore% 70 Gallery% 83 Achievement% 59 Wizard Run 0 Options --------- ASCII 1 Keyboard 1 Movement Vi Keybinds 0 Fullscreen 2 Font 14/Cog Map View 72x54 Tactical HUD 1 Map Filters NONE Filters LOW_CONTRAST(13,24,33) Steam 0 RUN: cae055bf-9fc8-49d3-a0ea-9b579fdb3dcd